Workbook

Sheet Database 2017
A1: Name | B1: Source of Wealth | C1: Source of Wealth Type 1) Domestic 2) International | D1: Country of Citizenship 2016 | E1: Company Name | F1: In-Scope
A2: A. Jerrold Perenchio | B2: Self-made | C2: Domestic | D2: United States | E2: Univision | F2: yes
A3: Abdul Al Rahman Al Jeraisy | D3: Saudi Arabia | F3: no
A4: Abdul Aziz Al Ghurair & Family | D4: United Arab Emirates | F4: no
A5: Abdul Majeed Alhokair | B5: Self-made | D5: Saudi Arabia | F5: no
A6: Abdul Rasyid | D6: Indonesia | F6: no
A7: Abdulaziz Bin Hamad Algosaibi & Family | D7: Saudi Arabia | F7: no
A8: Abdulla Al Futtaim | D8: United Arab Emirates | F8: no
A9: Abdulla bin Ahmad Al Ghurair & Family | D9: United Arab Emirates | F9: no
A10: Abdullah Al Rajhi | D10: Saudi Arabia | F10: no
A11: Abdulsamad Rabiu | D11: Nigeria | F11: no
A12: Abhay Firodia | B12: Multi-generational | C12: Domestic | D12: India | E12: Force Motors | F12: yes
A13: Abigail Johnson | B13: Multi-generational | C13: Domestic | D13: United States | E13: Fidelity Management & Research | F13: yes
A14: Abilio dos Santos Diniz | B14: Multi-generational | D14: Brazil | E14: Grupo Pao de Acucar | F14: no
A15: Achal Bakeri | B15: Self-made | C15: Domestic | D15: India | E15: Symphony Ltd | F15: yes
A16: Achille Maramotti | B16: Self-made | C16: International | D16: Italy | E16: Max Mara | F16: yes
A17: Achmad Hamami & Family | D17: Indonesia | F17: no
A18: Adam Neumann | D18: Israel | F18: no
A19: Adi Godrej & Family | B19: Multi-generational | C19: Domestic | D19: India | E19: Godrej Group | F19: yes
A20: Karl Albrecht Sr. | B20: Self-made | C20: International | D20: Germany | E20: Aldi Süd | F20: yes
A21: Adolf Merckle | B21: Multi-generational | C21: International | D21: Germany | E21: Merckle Unternehmensgruppe | F21: yes
A22: Adrian Swire & Family | B22: Multi-generational | C22: International | D22: United Kingdom | E22: Cathay Pacific | F22: yes
A23: Aerin Lauder Zinterhofer | B23: Multi-generational | C23: International | D23: United States | E23: Estee Lauder Companies Inc. | F23: yes
A24: Ahmed Ali Kanoo | B24: Multi-generational | D24: Bahrain | F24: no
A25: Ahmet Calik | B25: Self-made | C25: International | D25: Turkey | E25: Calik Holding | F25: yes
A26: Ahmet Nazif Zorlu | B26: Multi-generational | C26: International | D26: Turkey | E26: Zorlu Holding | F26: yes
A27: Pierre Castel & Family | B27: Self-made | C27: International | D27: France | E27: Groupe Castel | F27: yes
A28: Alexander Lutsenko | B28: Self-made | C28: Domestic | D28: Russia | E28: Sodrugestvo Group | F28: yes
A29: Ajay Kalsi | B29: Self-made | C29: Domestic | D29: India | E29: Indus Gas | F29: yes
A30: Ajay Piramal | B30: Multi-generational | C30: International | D30: India | E30: Piramal Enterprises | F30: yes
A31: Akihiko Otsuka | B31: Self-made | C31: International | D31: Japan | E31: Otsuka Holdings | F31: yes
A32: Akio Morita | B32: Self-made | C32: International | D32: Japan | E32: Sony | F32: yes
A33: Akio Nitori | B33: Self-made | C33: Domestic | D33: Japan | E33: Nitori | F33: yes
A34: Akira Mori & Family | B34: Multi-generational | C34: Domestic | D34: Japan | E34: Mori Trust | F34: yes
A35: Alain Bouchard | D35: Canada | F35: no
A36: Alain Merieux & Family | B36: Multi-generational | C36: International | D36: France | E36: Biomerieux, Sanofi Pasteur | F36: yes
A37: Alain Taravella | B37: Self-made | C37: Domestic | D37: France | E37: Altarea Cogedim | F37: yes
A38: Alain Wertheimer | B38: Multi-generational | C38: International | D38: France | E38: Chanel | F38: yes
A39: Alexei Bogachev | B39: Self-made | C39: Domestic | D39: Russia | E39: Magnit | F39: yes
A40: Alan Casden | B40: Self-made | C40: Domestic | D40: United States | E40: Casden Properties, LLC | F40: yes
A41: Alan Gerry | B41: Self-made | C41: Domestic | D41: United States | E41: Cablevision Industries | F41: yes
A42: Alan Howard | B42: Self-made | C42: Domestic | D42: United Kingdom | E42: Brevan Howard Asset Management LLP | F42: yes
A43: Alan Rydge | D43: Australia | F43: no
A44: Albert Berner | B44: Self-made | C44: International | D44: Germany | E44: Berner Group | F44: yes
A45: Albert Blokker | D45: Belgium | F45: no
A46: Albert Frere | D46: Belgium | F46: no
A47: Albert Gubay | B47: Self-made | C47: Domestic | D47: United Kingdom | E47: Kwik Save | F47: yes
A48: Albert Lee Ueltschi | B48: Self-made | C48: International | D48: United States | E48: Flight Safety International | F48: yes
A49: Amit Burman | B49: Multi-generational | C49: Domestic | D49: India | E49: Dabur | F49: yes
A50: Albert Ueltschi | B50: Self-made | C50: International | D50: United States | E50: Flight Safety International | F50: yes
A51: Albert von Thurn und Taxis | B51: Multi-generational | C51: Domestic | D51: Germany | E51: Owners of breweries and former builders of castles | F51: yes
A52: Albert Yeung | B52: Self-made | C52: Domestic | D52: Hong Kong | E52: Emperor Group | F52: yes
A53: Alberto Alcocer | B53: Self-made | C53: Domestic | D53: Spain | E53: Alcor Holdings | F53: yes
A54: Alberto Bailleres Gonzalez & Family | B54: Multi-generational | D54: Mexico | E54: Grupo Bal | F54: no
A55: Alberto Benavides & Family | D55: Peru | F55: no
A56: Alberto Bombassei | B56: Self-made | C56: International | D56: Italy | E56: Brembo | F56: yes
A57: Mary & Douglas Perkins | B57: Self-made | C57: International | D57: United Kingdom | E57: Specsavers | F57: yes
A58: Alberto Prada | B58: Multi-generational | C58: International | D58: Italy | E58: Prada | F58: yes
A59: Alberto Roemmers | D59: Argentina | F59: no
A60: Alberto Vilar | B60: Self-made | C60: Domestic | D60: United States | E60: Amerido Investment Advisors Inc. | F60: yes
A61: Albrecht and Henkel Family Woeste | B61: Multi-generational | C61: International | D61: Germany | E61: Henkel | F61: yes
A62: Aldo Bensadoun | B62: Self-made | D62: Canada | F62: no
A63: Alec Gores | B63: Self-made | C63: International | D63: United States | E63: Gores Group | F63: yes
A64: Alejandro Santo Domingo Davila & Family | B64: Multi-generational | D64: Colombia | F64: no
A65: Alejo Peralta | B65: Self-made | D65: Mexico | F65: no
A66: C. James Koch | B66: Multi-generational | C66: Domestic | D66: United States | E66: Samuel Adams beer | F66: yes
A67: Alexander Abramov | B67: Self-made | C67: Domestic | D67: Russia | E67: Evraz | F67: yes
A68: Alexander Dzhaparidze | B68: Self-made | C68: Domestic | D68: Russia | E68: Eurasia Drilling Company | F68: yes
A69: Alexander Frolov | B69: Self-made | C69: Domestic | D69: Russia | E69: Evraz | F69: yes
A70: Alexander Girda | B70: Self-made | C70: Domestic | D70: Russia | E70: Pyaterochka Holding | F70: yes
A71: Alexander Karp | B71: Self-made | C71: Domestic | D71: United States | E71: Palantir Technologies | F71: yes
A72: Alexander Knaster | B72: Self-made | C72: Domestic | D72: United States | E72: Pamplona Capital Management | F72: yes
A73: Alexander Lebedev | B73: Self-made | C73: Domestic | D73: Russia | E73: National Reserve Corporation | F73: yes
A74: Charles Butt & Family | B74: Multi-generational | C74: Domestic | D74: United States | E74: H-E-B | F74: yes
A75: Alexander Lutsenko & Family | B75: Self-made | C75: Domestic | D75: Russia | E75: Sodrugestvo Group | F75: yes
A76: Alexander Machkevich | D76: Israel | F76: no
A77: Alexander Mamut | B77: Self-made | C77: Domestic | D77: Russia | E77: Evroset | F77: yes
A78: Alexander Mashkevich | B78: Self-made | C78: International | D78: Russia | E78: Eurasian Natural Resources | F78: yes
A79: Alexander Nesis | B79: Self-made | C79: Domestic | D79: Russia | E79: Polymetal | F79: yes
A80: Alexander Ponomarenko | B80: Self-made | C80: Domestic | D80: Russia | E80: TPS Real Estate Holdings Ltd. | F80: yes
A81: Alexander Putilov | B81: Self-made | C81: Domestic | D81: Russia | E81: Eurasia Drilling Company | F81: yes
A82: Alexander Rovt | B82: Self-made | C82: International | D82: United States | E82: IBE Trade | F82: yes
A83: Bill Adderley & Family | B83: Self-made | C83: Domestic | D83: United Kingdom | E83: Dunelm Group | F83: yes
A84: Alexander Shchukin | B84: Self-made | C84: Domestic | D84: Russia | E84: Sibuglemet | F84: yes
A85: Alexander Shnaider | D85: Canada | F85: no
A86: Alexander Skorobogatko | B86: Self-made | C86: Domestic | D86: Russia | E86: TPS Real Estate Holdings Ltd. | F86: yes
A87: Alexander Spanos & Family | B87: Self-made | C87: Domestic | D87: United States | E87: A.G. Spanos | F87: yes
A88: Alexander Svetakov | B88: Self-made | C88: Domestic | D88: Russia | E88: Absolut Group | F88: yes
A89: Alexander Tedja | D89: Indonesia | F89: no
A90: Alexander Vagin | B90: Self-made | C90: Domestic | D90: Russia | E90: Raspadskaya OAO | F90: yes
A91: Alexander Vik | D91: Norway | F91: no
A92: Alexandra Andresen | D92: Norway | F92: no
A93: Alexandra Daitch | B93: Multi-generational | C93: International | D93: United States | E93: Cargill | F93: yes
A94: Alexandra Schörghuber | B94: Multi-generational | C94: Domestic | D94: Germany | E94: Schörghuber Unternehmensgruppe | F94: yes
A95: Alexandre Grendene Bartelle | D95: Brazil | F95: no
A96: Alexandre Soares dos Santos & Family | D96: Portugal | F96: no
A97: Alexei Ananyev | B97: Self-made | C97: Domestic | D97: Russia | E97: Technoserv | F97: yes
A98: Dai Deming | B98: Self-made | C98: Domestic | D98: China | E98: Hubei Hengxin Delong | F98: yes
A99: Alexei Kuzmichev | B99: Self-made | C99: Domestic | D99: Russia | E99: Alfa Group | F99: yes
A100: Alexei Semin | B100: Self-made | C100: Domestic | D100: Russia | E100: AS Management | F100: yes
A101: Alexey Mordashov | B101: Self-made | C101: International | D101: Russia | E101: Severstal | F101: yes
A102: Alfonso Romo Garza | B102: Self-made | D102: Mexico | F102: no
A103: Alfred Gantner | B103: Self-made | C103: International | D103: Switzerland | E103: Partners Group | F103: yes
A104: Alfred Heineken | B104: Multi-generational | D104: Netherlands | F104: no
A105: Alfred James Clark | B105: Self-made | C105: Domestic | D105: United States | E105: Clark Enterprises | F105: yes
A106: Alfred Lerner | B106: Self-made | C106: Domestic | D106: United States | E106: Various (real estate, sport) | F106: yes
A107: Donald Hall | B107: Multi-generational | C107: Domestic | D107: United States | E107: Hallmark Cards | F107: yes
A108: Alfred Oetker | B108: Multi-generational | C108: International | D108: Germany | E108: Oetker Group | F108: yes
A109: Alfred von Oppenheim | B109: Multi-generational | C109: Domestic | D109: Germany | E109: Sal. Oppenheim jr. & Cie. AG & Co. KGaA | F109: yes
A110: Alfred West Jr | B110: self-made | C110: International | D110: United States | E110: SEI Investments | F110: yes
A111: Alfredo Egydio Arruda Villela Filho | D111: Brazil | F111: no
A112: Alfredo Harp Helu & Family | D112: Mexico | F112: no
A113: Ali Ibrahim Agaoglu | B113: Multi-generational | C113: Domestic | D113: Turkey | E113: Agaoglu Group | F113: yes
A114: Ali Metin Kazanci | B114: Self-made | C114: Domestic | D114: Turkey | E114: Kazanci Holding | F114: yes
A115: Alice Walton | B115: Multi-generational | C115: International | D115: United States | E115: Walmart | F115: yes
A116: Alicia Koplowitz | B116: Multi-generational | C116: Domestic | D116: Spain | E116: Fomento de Construcciones y Contraras | F116: yes
A117: Alijan Ibragimov | D117: Kazakhstan | F117: no
A118: Aliko Dangote | B118: Self-made | D118: Nigeria | F118: no
A119: Alisher Usmanov | B119: Self-made | C119: Domestic | D119: Russia | E119: Metalloinvest, MegaFon, Kommerant | F119: yes
A120: Allan Gray | D120: South Africa | F120: no
A121: Allan Slaight | D121: Canada | F121: no
A122: Allan Wong | B122: Self-made | C122: International | D122: Hong Kong | E122: Vtech Holdings | F122: yes
A123: Aloke Lohia | D123: Thailand | F123: no
A124: Aloys Wobben | B124: Self-made | C124: International | D124: Germany | E124: enercon | F124: yes
A125: Aloysio de Andrade Faria | D125: Brazil | F125: no
A126: Alvaro Noboa | B126: Multi-generational | D126: Ecuador | F126: no
A127: Alvaro Saieh Bendeck | D127: Chile | F127: no
A128: Amalia Lacroze de Fortabat | D128: Argentina | F128: no
A129: Amancio Ortega | B129: Self-made | C129: International | D129: Spain | E129: Zara | F129: yes
A130: Amar Bose | B130: Self-made | C130: International | D130: United States | E130: Bose Corp. | F130: yes
A131: Americo Amorim | D131: Portugal | F131: no
A132: Edward Stack | B132: Multi-generational | C132: Domestic | D132: United States | E132: Dick's Sporting Goods | F132: yes
A133: Amos Hostetter Jr | B133: Self-made | C133: Domestic | D133: United States | E133: Continental Cablevision (media one) | F133: yes
A134: Amy Wyss | B134: Multi-generational | C134: International | D134: Switzerland | E134: Synthes | F134: yes
A135: An Kang | B135: Self-made | C135: Domestic | D135: China | E135: Hualan Biological Engineering | F135: yes
A136: Ana Lucia de Mattos Barretto Villela | D136: Brazil | F136: no
A137: Ana Maria Brescia Cafferata | D137: Peru | F137: no
A138: Ana Maria Marcondes Penido Sant'Anna | D138: Brazil | F138: no
A139: Anacleto Angelini | B139: Self-made | D139: Chile | F139: no
A140: Anand Burman | B140: Multi-generational | C140: Domestic | D140: India | E140: Dabur | F140: yes
A141: Anand Jain | B141: Self-made | C141: Domestic | D141: India | E141: Various (ex vice chariman Reliance group, Indian Petro Chemicals Ltd) | F141: yes
A142: Anand Mahindra | B142: Multi-generational | C142: International | D142: India | E142: Mahindra Group | F142: yes
A143: Ananda Krishnan | B143: Self-made | D143: Malaysia | F143: no
A144: Anas Sefrioui | D144: Morocco | F144: no
A145: Anatoly Lomakin | B145: Self-made | C145: International | D145: Russia | E145: International Potassium Company | F145: yes
A146: Anatoly Sedykh | B146: Self-made | C146: Domestic | D146: Russia | E146: United Metallurgical Company | F146: yes
A147: Anatoly Skurov | B147: Self-made | C147: Domestic | D147: Russia | E147: Sibuglemet, Uralkali | F147: yes
A148: Anders Holch Povlsen | D148: Denmark | F148: no
A149: Andre Esteves | D149: Brazil | F149: no
A150: André Kudelski | B150: Multi-generational | C150: International | D150: Switzerland | E150: Kudelski Group | F150: yes
A151: Andrea Della Valle | B151: Multi-generational | C151: International | D151: Italy | E151: Tod's S.p.A | F151: yes
A152: Andrea Reimann-Ciardelli | B152: Multi-generational | C152: Domestic | D152: Germany | E152: Joh. A. Benckiser | F152: yes
A153: Andreas Halvorsen | D153: Norway | F153: no
A154: Fred DeLuca | B154: Self-made | C154: International | D154: United States | E154: Subway Restaurants | F154: yes
A155: Andreas Struengmann | B155: Self-made | C155: Domestic | D155: Germany | E155: Hexal | F155: yes
A156: Andreas von Bechtolsheim | B156: Self-made | C156: International | D156: Germany | E156: Sun Microsystem | F156: yes
A157: Andrei Bokarev | B157: Self-made | C157: Domestic | D157: Russia | E157: Transmashholding | F157: yes
A158: Andrei Borodin | B158: Self-made | C158: Domestic | D158: Russia | E158: Bank of Moscow | F158: yes
A159: Andrei Filatov | B159: Self-made | C159: Domestic | D159: Russia | E159: N-Trans Group | F159: yes
A160: Andrei Guriev | B160: Self-made | C160: Domestic | D160: Russia | E160: FosAgro | F160: yes
A161: Andrei Klyamko | B161: Self-made | C161: International | D161: Russia | E161: Smart Holding Group | F161: yes
A162: Andrei Komarov | B162: Self-made | C162: Domestic | D162: Russia | E162: ChPTZ group | F162: yes
A163: Andrei Kosogov | B163: Self-made | C163: Domestic | D163: Russia | E163: Alfa Group | F163: yes
A164: Andrei Kozitsyn | B164: Self-made | C164: International | D164: Russia | E164: Urals Mining and Metals Company | F164: yes
A165: Andrei Kuzyaev | B165: Self-made | C165: Domestic | D165: Russia | E165: Perm Financial Industrial Group | F165: yes
A166: Andrei Molchanov | B166: Self-made | C166: Domestic | D166: Russia | E166: LSR Group | F166: yes
A167: Andrei Rappoport | B167: Self-made | C167: International | D167: Russia | E167: Georgian Global Utilities | F167: yes
A168: Andrei Rogachev | B168: Self-made | C168: Domestic | D168: Russia | E168: X5 Retail Group | F168: yes
A169: Andrei Skoch | B169: Self-made | C169: International | D169: Russia | E169: Metalloinvest | F169: yes
A170: Andrej Babis | D170: Czech Republic | F170: no
A171: Andres Santo Domingo | B171: Multi-generational | D171: Colombia | F171: no
A172: Andrew & Peggy Cherng | B172: Self-made | C172: Domestic | D172: United States | E172: Panda Restaurant Group | F172: yes
A173: Andrew Beal | B173: Self-made | C173: Domestic | D173: United States | E173: Beal Bank | F173: yes
A174: Andrew Currie | B174: Self-made | C174: International | D174: United Kingdom | E174: Ineos Group Limited | F174: yes
A175: Andrew Forrest | D175: Australia | F175: no
A176: Andrew Gotianun | B176: Self-made | D176: Philippines | F176: no
A177: Andrew McKelvey | B177: Self-made | C177: International | D177: United States | E177: Monster Worldwide | F177: yes
A178: Andrew Tan | D178: Philippines | F178: no
A179: Andrey Melnichenko | B179: Self-made | C179: Domestic | D179: Russia | E179: Alfa Group | F179: yes
A180: Andrey Verevskiy | D180: Ukraine | F180: no
A181: Andronico Luksic & Family | B181: Self-made | D181: Chile | F181: no
A182: Herbert Louis | B182: Multi-generational | C182: International | D182: United States | E182: SC Johnson | F182: yes
A183: Angela Bennett | D183: Australia | F183: no
A184: Angela Leong | B184: Multi-generational | C184: Domestic | D184: Hong Kong | E184: SJM Holdings | F184: yes
A185: Anil Agarwal | B185: Self-made | C185: International | D185: India | E185: Vedanta Resources | F185: yes
A186: Anil Ambani | B186: Multi-generational | C186: Domestic | D186: India | E186: Reliance Group | F186: yes
A187: Anita Zucker | B187: Multi-generational | C187: International | D187: United States | E187: Hudson's Bay Company | F187: yes
A188: Ann Walton Kroenke | B188: Multi-generational | C188: International | D188: United States | E188: Walmart | F188: yes
A189: Anna Maria Braun | B189: Multi-generational | C189: International | D189: Germany | E189: B. Braun Melsungen AG | F189: yes
A190: Anne Beaufour | B190: Multi-generational | C190: International | D190: France | E190: Ipsen | F190: yes
A191: Hong Xiaobo | B191: Self-made | C191: Domestic | D191: China | E191: Vipshop | F191: yes
A192: Anne Gittinger | B192: Multi-generational | C192: Domestic | D192: United States | E192: Nordstrom | F192: yes
A193: Anne Windfohr Marion | B193: Multi-generational | C193: Domestic | D193: United States | E193: Burnet Oil | F193: yes
A194: Anneliese Brost | B194: Multi-generational | C194: Domestic | D194: Germany | E194: WAZ Media | F194: yes
A195: Anthony Bamford | B195: Multi-generational | C195: International | D195: United Kingdom | E195: JCB | F195: yes
A196: Anthony Langley | B196: Self-made | C196: Domestic | D196: United Kingdom | E196: Langley Holdings | F196: yes
A197: Anthony O'Reilly & Family | B197: Multi-generational | C197: International | D197: Ireland | E197: JCB | F197: no
A198: Anthony Pratt | D198: Australia | F198: no
A199: Anthony Pritzker | B199: Multi-generational | C199: International | D199: United States | E199: Hyatt Hotels | F199: yes
A200: Anton Kathrein Jr | B200: Multi-generational | C200: Domestic | D200: Germany | E200: Kathrein-Werke KG | F200: yes
... 3030 more rows

Sheet Analysis
A1: In-Scope | B1: yes
A3: Count of Company Name | B3: Source of Co wealth
A4: Countries | B4: Domestic | C4: International | D4: Grand Total | F4: Countries | G4: Domestic | I4: International | K4: Grand Total | M4: Countries | N4: Domestic | P4: International | R4: Grand Total
A5: China | B5: 346 | C5: 83 | D5: 429 | F5: China | G5: 346 | H5: =G5/K5 -> 0.8065268065 | I5: 83 | J5: =I5/K5 -> 0.1934731935 | K5: 429 | M5: China | N5: 346 | O5: =N5/$N$19 -> 0.2404447533 | P5: 83 | Q5: =P5/$P$19 -> 0.08877005348 | R5: 429
A6: France | B6: 14 | C6: 56 | D6: 70 | F6: France | G6: 14 | H6: =G6/K6 -> 0.2 | I6: 56 | J6: =I6/K6 -> 0.8 | K6: 70 | M6: France | N6: 14 | O6: =N6/$N$19 -> 0.009728978457 | P6: 56 | Q6: =P6/$P$19 -> 0.05989304813 | R6: 70
A7: Germany | B7: 60 | C7: 136 | D7: 196 | F7: Germany | G7: 60 | H7: 0.306122449 | I7: 136 | J7: 0.693877551 | K7: 196 | M7: Germany | N7: 60 | O7: 0.04169562196 | P7: 136 | Q7: 0.1454545455 | R7: 196
A8: Hong Kong | B8: 69 | C8: 24 | D8: 93 | F8: Hong Kong | G8: 69 | H8: 0.7419354839 | I8: 24 | J8: 0.2580645161 | K8: 93 | M8: Hong Kong | N8: 69 | O8: 0.04794996525 | P8: 24 | Q8: 0.0256684492 | R8: 93
A9: India | B9: 94 | C9: 51 | D9: 145 | F9: India | G9: 94 | H9: 0.6482758621 | I9: 51 | J9: 0.3517241379 | K9: 145 | M9: India | N9: 94 | O9: 0.06532314107 | P9: 51 | Q9: 0.05454545455 | R9: 145
A10: Italy | B10: 20 | C10: 41 | D10: 61 | F10: Italy | G10: 20 | H10: 0.3278688525 | I10: 41 | J10: 0.6721311475 | K10: 61 | M10: Italy | N10: 20 | O10: 0.01389854065 | P10: 41 | Q10: 0.04385026738 | R10: 61
A11: Japan | B11: 66 | C11: 29 | D11: 95 | F11: Japan | G11: 66 | H11: 0.6947368421 | I11: 29 | J11: 0.3052631579 | K11: 95 | M11: Japan | N11: 66 | O11: 0.04586518416 | P11: 29 | Q11: 0.03101604278 | R11: 95
A12: Russia | B12: 124 | C12: 38 | D12: 162 | F12: Russia | G12: 124 | H12: 0.7654320988 | I12: 38 | J12: 0.2345679012 | K12: 162 | M12: Russia | N12: 124 | O12: 0.08617095205 | P12: 38 | Q12: 0.04064171123 | R12: 162
A13: Singapore | B13: 15 | C13: 14 | D13: 29 | F13: Singapore | G13: 15 | H13: 0.5172413793 | I13: 14 | J13: 0.4827586207 | K13: 29 | M13: Singapore | N13: 15 | O13: 0.01042390549 | P13: 14 | Q13: 0.01497326203 | R13: 29
A14: Spain | B14: 23 | C14: 19 | D14: 42 | F14: Spain | G14: 23 | H14: 0.5476190476 | I14: 19 | J14: 0.4523809524 | K14: 42 | M14: Spain | N14: 23 | O14: 0.01598332175 | P14: 19 | Q14: 0.02032085561 | R14: 42
A15: Switzerland | B15: 16 | C15: 32 | D15: 48 | F15: Switzerland | G15: 16 | H15: 0.3333333333 | I15: 32 | J15: 0.6666666667 | K15: 48 | M15: Switzerland | N15: 16 | O15: 0.01111883252 | P15: 32 | Q15: 0.03422459893 | R15: 48
A16: Turkey | B16: 46 | C16: 14 | D16: 60 | F16: Turkey | G16: 46 | H16: 0.7666666667 | I16: 14 | J16: 0.2333333333 | K16: 60 | M16: Turkey | N16: 46 | O16: 0.0319666435 | P16: 14 | Q16: 0.01497326203 | R16: 60
A17: United Kingdom | B17: 53 | C17: 40 | D17: 93 | F17: United Kingdom | G17: 53 | H17: 0.5760869565 | I17: 40 | J17: 0.4347826087 | K17: 92 | M17: United Kingdom | N17: 53 | O17: 0.03683113273 | P17: 40 | Q17: 0.04278074866 | R17: 92
A18: United States | B18: 493 | C18: 358 | D18: 851 | F18: United States | G18: 493 | H18: 0.5793184489 | I18: 358 | J18: 0.4206815511 | K18: 851 | M18: United States | N18: 493 | O18: 0.3425990271 | P18: 358 | Q18: 0.3828877005 | R18: 851
A19: Grand Total | B19: 1439 | C19: 935 | D19: 2374 | F19: Grand Total | G19: 1439 | H19: 0.6061499579 | I19: 935 | J19: 0.3938500421 | K19: 2374 | M19: Grand Total | N19: 1439 | O19: 1 | P19: 935 | Q19: 1 | R19: 2374
A22: In-Scope | B22: yes
A24: Source of co wealth | B24: Count of Company Name | F24: Countries | G24: Domestic | I24: International | K24: Grand Total
A25: Domestic | B25: 1439 | C25: =GETPIVOTDATA("Company Name",$A$24,"Source of Wealth Type 1) Domestic 2) International","Domestic")/GETPIVOTDATA("Company Name",$A$24) -> 0.6061499579 | F25: China | G25: 346 | H25: =G25/$K$39 -> 0.1457455771 | I25: 83 | J25: =I25/$K$39 -> 0.0349620893 | K25: 429
A26: International | B26: 935 | C26: =GETPIVOTDATA("Company Name",$A$24,"Source of Wealth Type 1) Domestic 2) International","International")/GETPIVOTDATA("Company Name",$A$24) -> 0.3938500421 | F26: France | G26: 14 | H26: 0.005897219882 | I26: 56 | J26: 0.02358887953 | K26: 70
A27: Grand Total | B27: 2374 | F27: Germany | G27: 60 | H27: 0.02527379949 | I27: 136 | J27: 0.05728727885 | K27: 196
F28: Hong Kong | G28: 69 | H28: 0.02906486942 | I28: 24 | J28: 0.0101095198 | K28: 93
F29: India | G29: 94 | H29: 0.03959561921 | I29: 51 | J29: 0.02148272957 | K29: 145
A30: In-Scope | B30: yes | F30: Italy | G30: 20 | H30: 0.008424599832 | I30: 41 | J30: 0.01727042965 | K30: 61
F31: Japan | G31: 66 | H31: 0.02780117944 | I31: 29 | J31: 0.01221566976 | K31: 95
A32: Row Labels | B32: Count of Company Name | F32: Russia | G32: 124 | H32: 0.05223251896 | I32: 38 | J32: 0.01600673968 | K32: 162
A33: Multi-generational | B33: 730 | F33: Singapore | G33: 15 | H33: 0.006318449874 | I33: 14 | J33: 0.005897219882 | K33: 29
A34: Domestic | B34: 364 | C34: =GETPIVOTDATA("Company Name",$A$32,"Source of Wealth","Multi-generational","Source of Wealth Type 1) Domestic 2) International","Domestic")/GETPIVOTDATA("Company Name",$A$32,"Source of Wealth","Multi-generational") -> 0.498630137 | F34: Spain | G34: 23 | H34: 0.009688289806 | I34: 19 | J34: 0.00800336984 | K34: 42
A35: International | B35: 366 | C35: =GETPIVOTDATA("Company Name",$A$32,"Source of Wealth","Multi-generational","Source of Wealth Type 1) Domestic 2) International","International")/GETPIVOTDATA("Company Name",$A$32,"Source of Wealth","Multi-generational") -> 0.501369863 | F35: Switzerland | G35: 16 | H35: 0.006739679865 | I35: 32 | J35: 0.01347935973 | K35: 48
A36: Self-made | B36: 1644 | F36: Turkey | G36: 46 | H36: 0.01937657961 | I36: 14 | J36: 0.005897219882 | K36: 60
A37: Domestic | B37: 1075 | C37: =GETPIVOTDATA("Company Name",$A$32,"Source of Wealth","Self-made","Source of Wealth Type 1) Domestic 2) International","Domestic")/GETPIVOTDATA("Company Name",$A$32,"Source of Wealth","Self-made") -> 0.653892944 | F37: United Kingdom | G37: 53 | H37: 0.02232518955 | I37: 40 | J37: 0.01684919966 | K37: 92
A38: International | B38: 569 | C38: =GETPIVOTDATA("Company Name",$A$32,"Source of Wealth","Self-made","Source of Wealth Type 1) Domestic 2) International","International")/GETPIVOTDATA("Company Name",$A$32,"Source of Wealth","Self-made") -> 0.346107056 | F38: United States | G38: 493 | H38: 0.2076663858 | I38: 358 | J38: 0.150800337 | K38: 851
A39: Grand Total | B39: 2374 | F39: Grand Total | G39: 1439 | H39: 0.6061499579 | I39: 935 | J39: 0.3938500421 | K39: 2374

Sheet ForbesDataAuto
A2: Formated Name | B2: Name | C2: Forbes 2017 rank | D2: Net worth M-1 2017 | E2: Age | F2: Source of wealth | G2: Forbes Self-Made Score | H2: Residence | I2: Citizenship | J2: Marital Status | K2: Children | L2: Education
A3: a-jerrold-perenchio | B3: A. Jerrold Perenchio | C3: #717 | D3: $2.8B | E3: 86 | F3: television, Univision, Self Made | G3: 8 | H3: Bel Air, California | I3: United States | J3: Married | K3: 3 | L3: Bachelor of Arts / Science, University of California, Los Angeles
A4: abdul-al-rahman-al-jeraisy
A5: abdul-aziz-al-ghurair | B5: Abdul Aziz Al Ghurair & family | C5: #401 | D5: $2.9B | E5: 62 | F5: banking | G5: United Arab Emirates | H5: Married | I5: 5 | J5: California State Polytechnical University
A6: abdul-majeed-alhokair | B6: Abdul Majeed Alhokair | C6: #1'678 | D6: $1.2B | E6: 47 | F6: retail, real estate, Self Made | G6: Riyadh, Saudi Arabia | H6: Saudi Arabia
A7: abdul-rasyid | B7: Abdul Rasyid | C7: #37 | D7: $810M | E7: 59 | F7: timber, palm oil, Self Made | G7: Singapore, Singapore | H7: Indonesia | I7: Married
A8: abdulaziz-bin-hamad-algosaibi
A9: abdulla-al-futtaim | B9: Abdulla Al Futtaim | C9: #427 | D9: $4.1B | E9: auto dealers, investments | F9: Dubai, United Arab Emirates | G9: United Arab Emirates | H9: Married
A10: abdulla-bin-ahmad-al-ghurair | B10: Abdulla bin Ahmad Al Ghurair & family | C10: #202 | D10: $6.8B | E10: diversified | F10: Dubai, United Arab Emirates | G10: United Arab Emirates
A11: abdullah-al-rajhi | B11: Abdullah Al Rajhi & family | C11: #1'098 | D11: $1.9B | E11: banking | F11: Riyadh, Saudi Arabia | G11: Saudi Arabia | H11: Married
A12: abdulsamad-rabiu | B12: Abdulsamad Rabiu | C12: #1'577 | D12: $1.1B | E12: 56 | F12: cement, sugar | G12: Lagos, Nigeria | H12: Nigeria | I12: Married
A13: abhay-firodia | B13: Abhay Firodia | C13: #1'098 | D13: $1.9B | E13: 72 | F13: automobiles | G13: Pune, India | H13: India | I13: Married | J13: 4
A14: abigail-johnson | B14: Abigail Johnson | C14: #75 | D14: $14.4B | E14: 55 | F14: money management | G14: 3 | H14: Milton, Massachusetts | I14: United States | J14: Married | K14: 2 | L14: Bachelor of Arts / Science, Hobart and William Smith; Master of Business Administration, Harvard Business School
A15: abilio-dos-santos-diniz | B15: Abilio dos Santos Diniz | C15: #581 | D15: $3.3B | E15: 80 | F15: retail | G15: Sao Paulo, Brazil | H15: Brazil | I15: Married | J15: 6 | K15: Bachelor of Arts / Science, Fundacao Getulio Vargas
A16: achal-bakeri | B16: Achal Bakeri | C16: #1'567 | D16: $1.3B | E16: 57 | F16: air coolers, Self Made | G16: Ahmedabad, India | H16: 2 | I16: India | J16: Married | K16: 2 | L16: Master of Business Administration, Marshall School of Business
A17: achille-maramotti
A18: achmad-hamami | B18: Achmad Hamami & family | C18: #38 | D18: $800M | E18: 86 | F18: heavy equipment, Self Made | G18: Jakarta, Indonesia | H18: Indonesia | I18: Married | J18: 4
A19: adam-neumann | B19: Adam Neumann | C19: #814 | D19: $2.5B | E19: 38 | F19: WeWork, Self Made | G19: New York, New York | H19: Israel | I19: Married | J19: 4 | K19: City University of New York Baruch
A20: adi-godrej | B20: Adi Godrej | C20: #814 | D20: $2.5B | E20: 75 | F20: consumer goods | G20: Mumbai, India | H20: India | I20: Widowed | J20: 3 | K20: Bachelor of Arts / Science, Massachusetts Institute of Technology; Master of Science, Massachusetts Institute of Technology
A21: karl-albrecht-sr
A22: adolf-merckle
A23: adrian-swire
A24: aerin-lauder-zinterhofer | B24: Aerin Lauder Zinterhofer | C24: #1'290 | D24: $1.6B | E24: 46 | F24: cosmetics | G24: 2 | H24: New York, New York | I24: United States | J24: Married | K24: 2
A25: ahmed-ali-kanoo
A26: ahmet-calik | B26: Ahmet Calik | C26: #1'468 | D26: $1.4B | E26: 59 | F26: energy, banking, construction, Self Made | G26: Istanbul, Turkey | H26: Turkey | I26: Married | J26: 4
A27: ahmet-nazif-zorlu | B27: Ahmet Nazif Zorlu | C27: #1'567 | D27: $1.3B | E27: 72 | F27: diversified, Self Made | G27: Istanbul, Turkey | H27: Turkey | I27: Married | J27: 3 | K27: Drop Out, High School
A28: pierre-castel | B28: Pierre Castel & family | C28: #125 | D28: $9.9B | E28: 90 | F28: wine, Self Made | G28: Geneva, Switzerland | H28: France | I28: Married
A29: alexander-lutsenko | B29: Alexander Lutsenko & family | C29: #1'638 | D29: $1.1B | E29: 55 | F29: agribusiness, Self Made | G29: Kaliningrad | H29: Russia | I29: Married | J29: 2
A30: ajay-kalsi | B30: Ajay Kalsi | C30: #1'678 | D30: $1.2B | E30: 56 | F30: oil & gas, Self Made | G30: Delhi, India | H30: India | I30: Married | J30: Bachelor of Arts / Science, London School of Economics; Master of Science, University of Cambridge
A31: ajay-piramal | B31: Ajay Piramal | C31: #501 | D31: $3.7B | E31: 61 | F31: pharmaceuticals | G31: Mumbai, India | H31: India | I31: Married | J31: 2 | K31: Bachelor of Arts / Science, Bombay University; Master of Business Administration, Bombay University
A32: akihiko-otsuka
A33: akio-morita
A34: akio-nitori | B34: Akio Nitori | C34: #13 | D34: $3.3B | E34: 73 | F34: home furnishings, Self Made | G34: Hokkaido, Japan | H34: Japan | I34: Married
A35: akira-mori | B35: Akira Mori & family | C35: #7 | D35: $4.4B | E35: 80 | F35: real estate | G35: Tokyo, Japan | H35: Japan | I35: Married | J35: 3
A36: alain-bouchard | B36: Alain Bouchard | C36: #581 | D36: $3.3B | E36: 68 | F36: retail, Self Made | G36: Montreal, Canada | H36: Canada | I36: Married | J36: 4
A37: alain-merieux | B37: Alain Merieux & family | C37: #441 | D37: $4B | E37: 79 | F37: pharmaceuticals | G37: Lyon, France | H37: France | I37: Married | J37: 3
A38: alain-taravella | B38: Alain Taravella | C38: #1'376 | D38: $1.5B | E38: 69 | F38: real estate, Self Made | G38: Paris, France | H38: France
A39: alain-wertheimer | B39: Alain Wertheimer | C39: #112 | D39: $11.8B | E39: 68 | F39: Chanel | G39: New York, New York | H39: France | I39: Married | J39: 3
A40: alexei-bogachev | B40: Alexei Bogachev | C40: #1'940 | D40: $1B | E40: 46 | F40: retail, banking, Self Made | G40: Moscow, Russia | H40: Russia | I40: Married | J40: 2 | K40: Bachelor of Arts / Science, Moscow State University for Design and Technologies
A41: alan-casden | B41: Alan Casden | C41: #1'015 | D41: $1.2B | E41: 71 | F41: real estate, Self Made | G41: Beverly Hills, CA | H41: United States | I41: Married | J41: 5 | K41: Bachelor of Arts / Science, University of Southern California
A42: alan-gerry | B42: Alan Gerry | C42: #1'376 | D42: $1.5B | E42: 87 | F42: cable television, Self Made | G42: Liberty, New York | H42: United States | I42: Married | J42: 3 | K42: Drop Out, High School
A43: alan-howard | B43: Alan Howard | C43: #1'468 | D43: $1.4B | E43: 53 | F43: hedge funds, Self Made | G43: Geneva, Switzerland | H43: 3 | I43: United Kingdom | J43: Married | K43: 4 | L43: Master of Science, Imperial College London
A44: alan-rydge | B44: Alan Rydge | C44: #1'795 | D44: $1.1B | E44: 64 | F44: entertainment, Self Made | G44: Sydney, Australia | H44: Australia | I44: Married
A45: albert-berner | B45: Albert Berner & family | C45: #1'376 | D45: $1.5B | E45: 81 | F45: fasteners, Self Made | G45: Kuenzelsau, Germany | H45: Germany | I45: Married | J45: 4
A46: albert-blokker | B46: Albert Blokker | C46: #1'210 | E46: 71 | F46: retail | G46: Belgium
A47: albert-frere | B47: Albert Frere | C47: #334 | D47: $4.9B | E47: 91 | F47: investments, Self Made | G47: Charleroi, Belgium | H47: Belgium | I47: Married | J47: 3 | K47: Drop Out, High School
A48: albert-gubay | B48: Albert Gubay | C48: #880 | E48: 89 | F48: real estate | G48: Stanton, Isle of Man, United Kingdom | H48: United Kingdom | I48: Married | J48: 2
A49: albert-lee-ueltschi
A50: amit-burman | B50: Amit Burman | C50: #1'712 | E50: 47 | F50: consumer goods | G50: Delhi, India | H50: India | I50: Married | J50: 2 | K50: Master of Business Administration, Judge Business School; Bachelor of Arts / Science, Lehigh University; Master of Science, Columbia University
A51: albert-ueltschi
A52: albert-von-thurn-und-taxis | B52: Albert von Thurn und Taxis | C52: #1'092 | D52: $1.6B | E52: 33 | F52: diversified | G52: Regensburg, Germany | H52: Germany | I52: Single | J52: Master of Arts, University of Edinburgh; Bachelor of Arts / Science, University of Edinburgh
A53: albert-yeung | B53: Albert Yeung | C53: #1'376 | D53: $1.5B | E53: 74 | F53: real estate, retail, Self Made | G53: Hong Kong, Hong Kong | H53: Hong Kong | I53: Married | J53: 5
A54: alberto-alcocer | B54: Alberto Alcocer | C54: #1'678 | D54: $1.2B | E54: 74 | F54: investments, Self Made | G54: Madrid, Spain | H54: Spain | I54: Married | J54: 5 | K54: Doctor of Jurisprudence, Universidad Complutense de Madrid
A55: alberto-bailleres-gonzalez | B55: Alberto Bailleres Gonzalez & family | C55: #123 | D55: $10.8B | E55: 85 | F55: mining | G55: Mexico City, Mexico | H55: Mexico | I55: Married | J55: 4
A56: alberto-benavides | B56: Alberto Benavides & family | C56: #736 | E56: mining, Self Made | F56: Peru | G56: 5 | H56: Master of Science, Harvard University
A57: alberto-bombassei | B57: Alberto Bombassei | C57: #1'121 | D57: $1.6B | E57: 76 | F57: automotive brakes, Self Made | G57: Bergamo, Italy | H57: Italy | I57: Married | J57: 2
A58: mary-&-douglas-perkins
A59: alberto-prada | B59: Alberto Prada | C59: #1'468 | D59: $1.4B | E59: luxury goods | F59: Milan, Italy | G59: 2 | H59: Italy
A60: alberto-roemmers | B60: Alberto Roemmers | C60: #1'030 | D60: $2B | E60: 90 | F60: pharmaceuticals | G60: Buenos Aires, Argentina | H60: Argentina | I60: Married | J60: 4
A61: alberto-vilar
A62: albrecht-and-henkel-family-woeste
A63: aldo-bensadoun | B63: Aldo Bensadoun | C63: #1'940 | D63: $1B | E63: 78 | F63: shoes, Self Made | G63: Montreal, Canada | H63: Canada | I63: Married | J63: 3
A64: alec-gores | B64: Alec Gores | C64: #973 | D64: $2.1B | E64: 64 | F64: private equity, Self Made | G64: 9 | H64: Beverly Hills, California | I64: United States | J64: Divorced | K64: 5 | L64: Bachelor of Arts / Science, Western Michigan University
A65: alejandro-santo-domingo-davila | B65: Alejandro Santo Domingo | C65: #348 | D65: $4.7B | E65: 40 | F65: beer | G65: 3 | H65: New York, New York | I65: 2 | J65: United States | K65: Married | L65: Bachelor of Arts / Science, Harvard University
A66: alejo-peralta
A67: c-james-koch | B67: Jim Koch | C67: #1'415 | D67: $1.3B | E67: 67 | F67: beer, Self Made | G67: Newton, MA | H67: United States | I67: Married | J67: 4 | K67: Bachelor of Arts / Science, Harvard University; Master of Business Administration, Harvard University; Doctor of Jurisprudence, Harvard University
A68: alexander-abramov | B68: Alexander Abramov | C68: #367 | D68: $4.5B | E68: 58 | F68: steel, mining, Self Made | G68: Moscow, Russia | H68: Russia | I68: Married | J68: 3 | K68: Bachelor of Arts / Science, Moscow Institute of Physics and Technology
A69: alexander-dzhaparidze | B69: Alexander Dzhaparidze | C69: #1'567 | D69: $1.3B | E69: 61 | F69: oil services, Self Made | G69: Moscow, Russia | H69: Russia | I69: Married | J69: 5 | K69: Master of Science, Gubkin Institute of Petrochemicals and Natural Gas
A70: alexander-frolov | B70: Alexander Frolov | C70: #1'161 | D70: $1.8B | E70: 52 | F70: mining, steel, Self Made | G70: Moscow, Russia | H70: Russia | I70: Married | J70: 1 | K70: Doctorate, Moscow Institute of Physics and Technology
A71: alexander-girda | B71: Alexander Girda | C71: #1'140 | E71: 55 | F71: retail, Self Made | G71: London, United Kingdom | H71: Russia | I71: Bachelor of Science in Engineering, Riga Institute of Civil Aviation
A72: alexander-karp | B72: Alexander Karp | C72: #1'290 | D72: $1.6B | E72: 49 | F72: software firm, Self Made | G72: Palo Alto, California | H72: United States | I72: Single | J72: Doctor of Jurisprudence, Stanford University; Bachelor of Arts / Science, Haverford College
A73: alexander-knaster | B73: Alexander Knaster | C73: #302 | D73: $2.1B | E73: 58 | F73: oil, telecom, banking, Self Made | G73: 8 | H73: London, United Kingdom | I73: United States | J73: Married | K73: 4 | L73: Doctorate, Russian Academy of Economics; Master of Business Administration, Harvard University; Bachelor of Arts / Science, Carnegie Mellon University
A74: alexander-lebedev | B74: Alexander Lebedev | C74: #1'075 | D74: $1.1B | E74: 57 | F74: investments, banking, Self Made | G74: Russia | H74: Married | I74: 2 | J74: Bachelor of Arts / Science, Moscow Institute of International Relations
A75: charles-butt | B75: Charles Butt & family | C75: #44 | D75: $10.7B | E75: 79 | F75: supermarkets | G75: 5 | H75: San Antonio, TX | I75: United States | J75: Single | K75: Bachelor of Arts / Science, University of Pennsylvania Wharton School
A76: alexander-lutsenko | B76: Alexander Lutsenko & family | C76: #1'638 | D76: $1.1B | E76: 55 | F76: agribusiness, Self Made | G76: Kaliningrad | H76: Russia | I76: Married | J76: 2
A77: alexander-machkevich | B77: Alexander Machkevich | C77: #1'098 | D77: $1.9B | E77: 63 | F77: mining, metals, Self Made | G77: Almaty, Kazakhstan | H77: Israel | I77: Married | J77: 2
A78: alexander-mamut | B78: Alexander Mamut | C78: #814 | D78: $2.5B | E78: 57 | F78: investments, Self Made | G78: Moscow, Russia | H78: Russia | I78: Widowed | J78: 5 | K78: LLB, Moscow State University
A79: alexander-mashkevich
A80: alexander-nesis | B80: Alexander Nesis | C80: #867 | D80: $2.4B | E80: 54 | F80: metals, banking, fertilizers, Self Made | G80: Moscow, Russia | H80: Russia | I80: Married | J80: 4 | K80: Bachelor of Arts / Science, Leningrad Technological Institute
A81: alexander-ponomarenko | B81: Alexander Ponomarenko | C81: #660 | D81: $3B | E81: 52 | F81: ports, Self Made | G81: Moscow, Russia | H81: Russia | I81: Married | J81: 3 | K81: Bachelor of Arts / Science, Simferopol State University; Master of Science, Russian State Academy of Management
A82: alexander-putilov | B82: Alexander Putilov | C82: #1'372 | D82: $1.2B | E82: 64 | F82: oil, Self Made | G82: Moscow, Russia | H82: Russia | I82: Married | J82: 2 | K82: Bachelor of Arts / Science, Tyumen Industrial Institute
A83: alexander-rovt | B83: Alexander Rovt | C83: #1'567 | D83: $1.3B | E83: 64 | F83: fertilizer, real estate, Self Made | G83: New York, New York | H83: United States | I83: Married | J83: 2 | K83: Doctorate, Lvov Institute of Trade & Economics
A84: bill-adderley | B84: Bill Adderley & family | C84: #1'054 | D84: $1.8B | E84: 69 | F84: home furnishings, Self Made | G84: Leicester, United Kingdom | H84: United Kingdom | I84: Married | J84: 2
A85: alexander-shchukin | B85: Alexander Shchukin | C85: #692 | E85: 66 | F85: coal, Self Made | G85: Novokuznetsk, Russia | H85: Russia | I85: Married | J85: 1 | K85: Bachelor of Science in Engineering, Moscow Institute of Mining
A86: alexander-shnaider | B86: Alexander Shnaider | C86: #773 | E86: 48 | F86: steel, Self Made | G86: Toronto, Canada | H86: Canada | I86: Married | J86: 3 | K86: Bachelor of Arts / Science, York University
A87: alexander-skorobogatko | B87: Alexander Skorobogatko | C87: #660 | D87: $3B | E87: 49 | F87: ports, Self Made | G87: Moscow, Russia | H87: Russia | I87: Married | J87: 3 | K87: Master of Science, Plekhanov Russian University of Economics
A88: alexander-spanos | B88: Alexander Spanos & family | C88: #867 | D88: $2.4B | E88: 93 | F88: real estate, San Diego Chargers, Self Made | G88: Stockton, California | H88: United States | I88: Married | J88: 4 | K88: Bachelor of Arts / Science, University of the Pacific
A89: alexander-svetakov | B89: Alexander Svetakov | C89: #581 | D89: $3.3B | E89: 49 | F89: banking, real estate, Self Made | G89: Moscow, Russia | H89: Russia | I89: Divorced | J89: 4 | K89: Bachelor of Science in Engineering, Moscow Institute of Electronic Technology
A90: alexander-tedja | B90: Alexander Tedja | C90: #1'940 | D90: $1B | E90: 71 | F90: real estate, Self Made | G90: Jakarta, Indonesia | H90: Indonesia | I90: Married | J90: 4
A91: alexander-vagin | B91: Alexander Vagin | C91: #938 | E91: 58 | F91: coal, Self Made | G91: Mezhdurechensk, Russia | H91: Russia | I91: Married | J91: 2 | K91: Bachelor of Arts / Science, Kuzbass Polytechnic Institute
A92: alexander-vik | B92: Alexander Vik | C92: #1'940 | D92: $1B | E92: 62 | F92: investments | G92: Monaco, Monaco | H92: Norway | I92: Married | J92: 4 | K92: Bachelor of Arts / Science, Harvard University
A93: alexandra-andresen | B93: Alexandra Andresen | C93: #1'678 | D93: $1.2B | E93: 20 | F93: investments | G93: Oslo, Norway | H93: Norway | I93: Single
A94: alexandra-daitch | B94: Alexandra Daitch | C94: #1'098 | D94: $1.9B | E94: 54 | F94: Cargill | G94: 1 | H94: Old Lyme, Connecticut | I94: United States
A95: alexandra-schörghuber
A96: alexandre-grendene-bartelle | B96: Alexandre Grendene Bartelle | C96: #1'030 | D96: $2B | E96: 67 | F96: shoes, Self Made | G96: Porto Alegre, Brazil | H96: Brazil | I96: Single | J96: 7
A97: alexandre-soares-dos-santos | B97: Alexandre Soares dos Santos & family | C97: #745 | D97: $2.7B | E97: 82 | F97: supermarkets | G97: Lisbon, Portugal | H97: Portugal | I97: Married | J97: 7
A98: alexei-ananyev | B98: Alexei Ananyev | C98: #1'468 | D98: $1.4B | E98: 52 | F98: banking, IT, real estate, Self Made | G98: Moscow, Russia | H98: Russia | I98: Married | J98: 3 | K98: Master of Business Administration, University of Chicago
A99: dai-deming | B99: Dai Deming | C99: #1'712 | D99: $1.05B | E99: auto distribution, Self Made | F99: Wuhan, China | G99: China
A100: alexei-kuzmichev | B100: Alexei Kuzmichev | C100: #194 | D100: $7.2B | E100: 54 | F100: oil, banking, telecom, Self Made | G100: London, United Kingdom | H100: Russia | I100: Married | J100: 1 | K100: Bachelor of Arts / Science, Moscow Institute of Steel and Alloys
A101: alexei-semin
A102: alexey-mordashov
A103: alfonso-romo-garza
A104: alfred-gantner
A105: alfred-heineken
A106: alfred-james-clark
A107: alfred-lerner
A108: donald-hall
A109: alfred-oetker
A110: alfred-von-oppenheim
A111: alfred-west-jr
A112: alfredo-egydio-arruda-villela-filho
A113: alfredo-harp-helu
A114: ali-ibrahim-agaoglu
A115: ali-metin-kazanci
A116: alice-walton
A117: alicia-koplowitz
A118: alijan-ibragimov
A119: aliko-dangote
A120: alisher-usmanov
A121: allan-gray
A122: allan-slaight
A123: allan-wong
A124: aloke-lohia
A125: aloys-wobben
A126: aloysio-de-andrade-faria
A127: alvaro-noboa
A128: alvaro-saieh-bendeck
A129: amalia-lacroze-de-fortabat
A130: amancio-ortega
A131: amar-bose
A132: americo-amorim
A133: edward-stack
A134: amos-hostetter-jr
A135: amy-wyss
A136: an-kang
A137: ana-lucia-de-mattos-barretto-villela
A138: ana-maria-brescia-cafferata
A139: ana-maria-marcondes-penido-sant'anna
A140: anacleto-angelini
A141: anand-burman
A142: anand-jain
A143: anand-mahindra
A144: ananda-krishnan
A145: anas-sefrioui
A146: anatoly-lomakin
A147: anatoly-sedykh
A148: anatoly-skurov
A149: anders-holch-povlsen
A150: andre-esteves
A151: andré-kudelski
A152: andrea-della-valle
A153: andrea-reimann-ciardelli
A154: andreas-halvorsen
A155: fred-deluca
A156: andreas-struengmann
A157: andreas-von-bechtolsheim
A158: andrei-bokarev
A159: andrei-borodin
A160: andrei-filatov
A161: andrei-guriev
A162: andrei-klyamko
A163: andrei-komarov
A164: andrei-kosogov
A165: andrei-kozitsyn
A166: andrei-kuzyaev
A167: andrei-molchanov
A168: andrei-rappoport
A169: andrei-rogachev
A170: andrei-skoch
A171: andrej-babis
A172: andres-santo-domingo
A173: andrew-&-peggy-cherng
A174: andrew-beal
A175: andrew-currie
A176: andrew-forrest
A177: andrew-gotianun
A178: andrew-mckelvey
A179: andrew-tan
A180: andrey-melnichenko
A181: andrey-verevskiy
A182: andronico-luksic
A183: herbert-louis
A184: angela-bennett
A185: angela-leong
A186: anil-agarwal
A187: anil-ambani
A188: anita-zucker
A189: ann-walton-kroenke
A190: anna-maria-braun
A191: anne-beaufour
A192: hong-xiaobo
A193: anne-gittinger
A194: anne-windfohr-marion
A195: anneliese-brost
A196: anthony-bamford
A197: anthony-langley
A198: anthony-o'reilly
A199: anthony-pratt
A200: anthony-pritzker
A201: anton-kathrein-jr
... 3030 more rows

Sheet ForbesDataAuto2
A2: Formated Name | B2: Name | C2: Forbes 2017 rank | D2: Net worth M-1 2017 | E2: Age | F2: Source of wealth | G2: Forbes Self-Made Score | H2: Residence | I2: Citizenship | J2: Marital Status | K2: Children | L2: Education
A3: A. Jerrold Perenchio | B3: A. Jerrold Perenchio | C3: #717 | D3: $2.8B | E3: 86 | F3: television, Univision, Self Made | G3: 8 | H3: Bel Air, California | I3: United States | J3: Married | K3: 3 | L3: Bachelor of Arts / Science, University of California, Los Angeles
A4: Abdul Al Rahman Al Jeraisy | B4: Customer Support
A5: Abdul Aziz Al Ghurair & Family | C5: #401 | D5: $2.9B | E5: 62 | F5: banking | G5: United Arab Emirates | H5: Married | I5: 5 | J5: California State Polytechnical University
A6: Abdul Majeed Alhokair | B6: Abdul Majeed Alhokair | C6: #1'678 | D6: $1.2B | E6: 47 | F6: retail, real estate, Self Made | G6: Riyadh, Saudi Arabia | H6: Saudi Arabia
A7: Abdul Rasyid | B7: Abdul Rasyid | C7: #37 | D7: $810M | E7: 59 | F7: timber, palm oil, Self Made | G7: Singapore, Singapore | H7: Indonesia | I7: Married
A8: Abdulaziz Bin Hamad Algosaibi & Family
A9: Abdulla Al Futtaim | B9: Abdulla Al Futtaim | C9: #427 | D9: $4.1B | E9: auto dealers, investments | F9: Dubai, United Arab Emirates | G9: United Arab Emirates | H9: Married
A10: Abdulla bin Ahmad Al Ghurair & Family | F10: Dubai, United Arab Emirates | G10: United Arab Emirates
A11: Abdullah Al Rajhi
A12: Abdulsamad Rabiu | B12: Abdulsamad Rabiu | C12: #1'577 | D12: $1.1B | E12: 56 | F12: cement, sugar | G12: Lagos, Nigeria | H12: Nigeria | I12: Married
A13: Abhay Firodia | B13: Abhay Firodia | C13: #1'098 | D13: $1.9B | E13: 72 | F13: automobiles | G13: Pune, India | H13: India | I13: Married | J13: 4
A14: Abigail Johnson | B14: Abigail Johnson | C14: #75 | D14: $14.4B | E14: 55 | F14: money management | G14: 3 | H14: Milton, Massachusetts | I14: United States | J14: Married | K14: 2 | L14: Bachelor of Arts / Science, Hobart and William Smith; Master of Business Administration, Harvard Business School
A15: Abilio dos Santos Diniz | B15: Abilio dos Santos Diniz | C15: #581 | D15: $3.3B | E15: 80 | F15: retail | G15: Sao Paulo, Brazil | H15: Brazil | I15: Married | J15: 6 | K15: Bachelor of Arts / Science, Fundacao Getulio Vargas
A16: Achal Bakeri | B16: Achal Bakeri | C16: #1'567 | D16: $1.3B | E16: 57 | F16: air coolers, Self Made | G16: Ahmedabad, India | H16: 2 | I16: India | J16: Married | K16: 2 | L16: Master of Business Administration, Marshall School of Business
A17: Achille Maramotti | B17: Trending Now
A18: Achmad Hamami & Family | B18: Achmad Hamami & family | C18: #38 | D18: $800M | E18: 86 | F18: heavy equipment, Self Made | G18: Jakarta, Indonesia | H18: Indonesia | I18: Married | J18: 4
A19: Adam Neumann | B19: Adam Neumann | C19: #814 | D19: $2.5B | E19: 38 | F19: WeWork, Self Made | G19: New York, New York | H19: Israel | I19: Married | J19: 4 | K19: City University of New York Baruch
A20: Adi Godrej & Family
A21: Karl Albrecht Sr.
A22: Adolf Merckle
A23: Adrian Swire & Family | B23: Early life[edit]
A24: Aerin Lauder Zinterhofer | C24: #1'290 | D24: $1.6B | E24: 46 | F24: cosmetics | G24: 2 | H24: New York, New York | I24: United States | J24: Married | K24: 2
A25: Ahmed Ali Kanoo
A26: Ahmet Calik | B26: Ahmet Calik | C26: #1'468 | D26: $1.4B | E26: 59 | F26: energy, banking, construction, Self Made | G26: Istanbul, Turkey | H26: Turkey | I26: Married | J26: 4
A27: Ahmet Nazif Zorlu
A28: Pierre Castel & Family | B28: Pierre Castel & family | C28: #125 | D28: $9.9B | E28: 90 | F28: wine, Self Made | G28: Geneva, Switzerland | H28: France | I28: Married
A29: Alexander Lutsenko
A30: Ajay Kalsi | B30: Ajay Kalsi | C30: #1'678 | D30: $1.2B | E30: 56 | F30: oil & gas, Self Made | G30: Delhi, India | H30: India | I30: Married | J30: Bachelor of Arts / Science, London School of Economics; Master of Science, University of Cambridge
A31: Ajay Piramal | B31: Ajay Piramal | C31: #501 | D31: $3.7B | E31: 61 | F31: pharmaceuticals | G31: Mumbai, India | H31: India | I31: Married | J31: 2 | K31: Bachelor of Arts / Science, Bombay University; Master of Business Administration, Bombay University
A32: Akihiko Otsuka
A33: Akio Morita
A34: Akio Nitori | B34: Akio Nitori | C34: #13 | D34: $3.3B | E34: 73 | F34: home furnishings, Self Made | G34: Hokkaido, Japan | H34: Japan | I34: Married
A35: Akira Mori & Family
A36: Alain Bouchard | B36: Alain Bouchard | C36: #581 | D36: $3.3B | E36: 68 | F36: retail, Self Made | G36: Montreal, Canada | H36: Canada | I36: Married | J36: 4
A37: Alain Merieux & Family | B37: Alain Merieux & family | C37: #441 | D37: $4B | E37: 79 | F37: pharmaceuticals | G37: Lyon, France | H37: France | I37: Married | J37: 3
A38: Alain Taravella | B38: Alain Taravella | C38: #1'376 | D38: $1.5B | E38: 69 | F38: real estate, Self Made | G38: Paris, France | H38: France
A39: Alain Wertheimer | B39: Alain Wertheimer | C39: #112 | D39: $11.8B | E39: 68 | F39: Chanel | G39: New York, New York | H39: France | I39: Married | J39: 3
A40: Alexei Bogachev | B40: Alexei Bogachev | C40: #1'940 | D40: $1B | E40: 46 | F40: retail, banking, Self Made | G40: Moscow, Russia | H40: Russia | I40: Married | J40: 2 | K40: Bachelor of Arts / Science, Moscow State University for Design and Technologies
A41: Alan Casden | B41: Alan Casden | C41: #1'015 | D41: $1.2B | E41: 71 | F41: real estate, Self Made | G41: Beverly Hills, CA | H41: United States | I41: Married | J41: 5 | K41: Bachelor of Arts / Science, University of Southern California
A42: Alan Gerry
A43: Alan Howard | B43: Alan Howard | C43: #1'468 | D43: $1.4B | E43: 53 | F43: hedge funds, Self Made | G43: Geneva, Switzerland | H43: 3 | I43: United Kingdom | J43: Married | K43: 4 | L43: Master of Science, Imperial College London
A44: Alan Rydge | B44: Alan Rydge | C44: #1'795 | D44: $1.1B | E44: 64 | F44: entertainment, Self Made | G44: Sydney, Australia | H44: Australia | I44: Married
A45: Albert Berner | B45: Albert Berner & family | C45: #1'376 | D45: $1.5B | E45: 81 | F45: fasteners, Self Made | G45: Kuenzelsau, Germany | H45: Germany | I45: Married | J45: 4
A46: Albert Blokker | B46: Albert Blokker | C46: #1'210 | E46: 71 | F46: retail | G46: Belgium
A47: Albert Frere | B47: Albert Frere | C47: #334 | D47: $4.9B | E47: 91 | F47: investments, Self Made | G47: Charleroi, Belgium | H47: Belgium | I47: Married | J47: 3 | K47: Drop Out, High School
A48: Albert Gubay
A49: Albert Lee Ueltschi
A50: Amit Burman | B50: Amit Burman | C50: #1'712 | E50: 47 | F50: consumer goods | G50: Delhi, India | H50: India | I50: Married | J50: 2 | K50: Master of Business Administration, Judge Business School; Bachelor of Arts / Science, Lehigh University; Master of Science, Columbia University
A51: Albert Ueltschi | B51: Albert Ueltschi | C51: #229 | D51: $2.1B | E51: FlightSafety, Self Made | F51: United States | G51: 4 | H51: Drop Out, University of Kentucky
A52: Albert von Thurn und Taxis | B52: Albert von Thurn und Taxis | C52: #1'092 | D52: $1.6B | E52: 33 | F52: diversified | G52: Regensburg, Germany | H52: Germany | I52: Single | J52: Master of Arts, University of Edinburgh; Bachelor of Arts / Science, University of Edinburgh
A53: Albert Yeung | B53: Albert Yeung | C53: #1'376 | D53: $1.5B | E53: 74 | F53: real estate, retail, Self Made | G53: Hong Kong, Hong Kong | H53: Hong Kong | I53: Married | J53: 5
A54: Alberto Alcocer | B54: Alberto Alcocer | C54: #1'678 | D54: $1.2B | E54: 74 | F54: investments, Self Made | G54: Madrid, Spain | H54: Spain | I54: Married | J54: 5 | K54: Doctor of Jurisprudence, Universidad Complutense de Madrid
A55: Alberto Bailleres Gonzalez & Family | B55: Alberto Bailleres Gonzalez & family | C55: #123 | D55: $10.8B | E55: 85 | F55: mining | G55: Mexico City, Mexico | H55: Mexico | I55: Married | J55: 4
A56: Alberto Benavides & Family | B56: Alberto Benavides & family | C56: #736 | E56: mining, Self Made | F56: Peru | G56: 5 | H56: Master of Science, Harvard University
A57: Alberto Bombassei | B57: Alberto Bombassei | C57: #1'121 | D57: $1.6B | E57: 76 | F57: automotive brakes, Self Made | G57: Bergamo, Italy | H57: Italy | I57: Married | J57: 2
A58: Mary & Douglas Perkins | B58: Mary & Douglas Perkins | C58: #737 | D58: $2.5B | E58: retail, Self Made | F58: Guernsey, United Kingdom | G58: United Kingdom | H58: Married
A59: Alberto Prada | B59: Alberto Prada | C59: #1'468 | D59: $1.4B | E59: luxury goods | F59: Milan, Italy | G59: 2 | H59: Italy
A60: Alberto Roemmers | B60: Alberto Roemmers | C60: #1'030 | D60: $2B | E60: 90 | F60: pharmaceuticals | G60: Buenos Aires, Argentina | H60: Argentina | I60: Married | J60: 4
A61: Alberto Vilar | B61: Trending Now
A62: Albrecht and Henkel Family Woeste
A63: Aldo Bensadoun
A64: Alec Gores | B64: Alec Gores | C64: #973 | D64: $2.1B | E64: 64 | F64: private equity, Self Made | G64: 9 | H64: Beverly Hills, California | I64: United States | J64: Divorced | K64: 5 | L64: Bachelor of Arts / Science, Western Michigan University
A65: Alejandro Santo Domingo Davila & Family
A66: Alejo Peralta
A67: C. James Koch
A68: Alexander Abramov | B68: Alexander Abramov | C68: #367 | D68: $4.5B | E68: 58 | F68: steel, mining, Self Made | G68: Moscow, Russia | H68: Russia | I68: Married | J68: 3 | K68: Bachelor of Arts / Science, Moscow Institute of Physics and Technology
A69: Alexander Dzhaparidze | B69: Alexander Dzhaparidze | C69: #1'567 | D69: $1.3B | E69: 61 | F69: oil services, Self Made | G69: Moscow, Russia | H69: Russia | I69: Married | J69: 5 | K69: Master of Science, Gubkin Institute of Petrochemicals and Natural Gas
A70: Alexander Frolov | B70: Alexander Frolov | C70: #1'161 | D70: $1.8B | E70: 52 | F70: mining, steel, Self Made | G70: Moscow, Russia | H70: Russia | I70: Married | J70: 1 | K70: Doctorate, Moscow Institute of Physics and Technology
A71: Alexander Girda | B71: Alexander Girda | C71: #1'140 | E71: 55 | F71: retail, Self Made | G71: London, United Kingdom | H71: Russia | I71: Bachelor of Science in Engineering, Riga Institute of Civil Aviation
A72: Alexander Karp
A73: Alexander Knaster
A74: Alexander Lebedev | B74: Alexander Lebedev | C74: #1'075 | D74: $1.1B | E74: 57 | F74: investments, banking, Self Made | G74: Russia | H74: Married | I74: 2 | J74: Bachelor of Arts / Science, Moscow Institute of International Relations
A75: Charles Butt & Family
A76: Alexander Lutsenko & Family | B76: Alexander Lutsenko & family | C76: #1'638 | D76: $1.1B | E76: 55 | F76: agribusiness, Self Made | G76: Kaliningrad | H76: Russia | I76: Married | J76: 2
A77: Alexander Machkevich | B77: Alexander Machkevich | C77: #1'098 | D77: $1.9B | E77: 63 | F77: mining, metals, Self Made | G77: Almaty, Kazakhstan | H77: Israel | I77: Married | J77: 2
A78: Alexander Mamut | B78: Alexander Mamut | C78: #814 | D78: $2.5B | E78: 57 | F78: investments, Self Made | G78: Moscow, Russia | H78: Russia | I78: Widowed | J78: 5 | K78: LLB, Moscow State University
A79: Alexander Mashkevich | B79: Alexander Machkevich | C79: #1'098 | D79: $1.9B | E79: 63 | F79: mining, metals, Self Made | G79: Almaty, Kazakhstan | H79: Israel | I79: Married | J79: 2
A80: Alexander Nesis | B80: Alexander Nesis | C80: #867 | D80: $2.4B | E80: 54 | F80: metals, banking, fertilizers, Self Made | G80: Moscow, Russia | H80: Russia | I80: Married | J80: 4 | K80: Bachelor of Arts / Science, Leningrad Technological Institute
A81: Alexander Ponomarenko | F81: ports, Self Made | G81: Moscow, Russia | H81: Russia | I81: Married | J81: 3 | K81: Bachelor of Arts / Science, Simferopol State University; Master of Science, Russian State Academy of Management
A82: Alexander Putilov | B82: Alexander Putilov | C82: #1'372 | D82: $1.2B | E82: 64 | F82: oil, Self Made | G82: Moscow, Russia | H82: Russia | I82: Married | J82: 2 | K82: Bachelor of Arts / Science, Tyumen Industrial Institute
A83: Alexander Rovt | B83: Alexander Rovt | C83: #1'567 | D83: $1.3B | E83: 64 | F83: fertilizer, real estate, Self Made | G83: New York, New York | H83: United States | I83: Married | J83: 2 | K83: Doctorate, Lvov Institute of Trade & Economics
A84: Bill Adderley & Family | B84: Bill Adderley & family | C84: #1'054 | D84: $1.8B | E84: 69 | F84: home furnishings, Self Made | G84: Leicester, United Kingdom | H84: United Kingdom | I84: Married | J84: 2
A85: Alexander Shchukin | B85: Alexander Shchukin | C85: #692 | E85: 66 | F85: coal, Self Made | G85: Novokuznetsk, Russia | H85: Russia | I85: Married | J85: 1 | K85: Bachelor of Science in Engineering, Moscow Institute of Mining
A86: Alexander Shnaider
A87: Alexander Skorobogatko | B87: Alexander Skorobogatko | C87: #660 | D87: $3B | E87: 49 | F87: ports, Self Made | G87: Moscow, Russia | H87: Russia | I87: Married | J87: 3 | K87: Master of Science, Plekhanov Russian University of Economics
A88: Alexander Spanos & Family
A89: Alexander Svetakov | B89: Alexander Svetakov | C89: #581 | D89: $3.3B | E89: 49 | F89: banking, real estate, Self Made | G89: Moscow, Russia | H89: Russia | I89: Divorced | J89: 4 | K89: Bachelor of Science in Engineering, Moscow Institute of Electronic Technology
A90: Alexander Tedja
A91: Alexander Vagin | B91: Alexander Vagin | C91: #938 | E91: 58 | F91: coal, Self Made | G91: Mezhdurechensk, Russia | H91: Russia | I91: Married | J91: 2 | K91: Bachelor of Arts / Science, Kuzbass Polytechnic Institute
A92: Alexander Vik | B92: Trending Now
A93: Alexandra Andresen | B93: Alexandra Andresen | C93: #1'678 | D93: $1.2B | E93: 20 | F93: investments | G93: Oslo, Norway | H93: Norway | I93: Single
A94: Alexandra Daitch | B94: Alexandra Daitch | C94: #1'098 | D94: $1.9B | E94: 54 | F94: Cargill | G94: 1 | H94: Old Lyme, Connecticut | I94: United States
A95: Alexandra Schörghuber
A96: Alexandre Grendene Bartelle
A97: Alexandre Soares dos Santos & Family | B97: Alexandre Soares dos Santos & family | C97: #745 | D97: $2.7B | E97: 82 | F97: supermarkets | G97: Lisbon, Portugal | H97: Portugal | I97: Married | J97: 7
A98: Alexei Ananyev
A99: Dai Deming | B99: Dai Deming | C99: #1'712 | D99: $1.05B | E99: auto distribution, Self Made | F99: Wuhan, China | G99: China
A100: Alexei Kuzmichev
A101: Alexei Semin
A102: Alexey Mordashov
A103: Alfonso Romo Garza
A104: Alfred Gantner
A105: Alfred Heineken
A106: Alfred James Clark
A107: Alfred Lerner
A108: Donald Hall
A109: Alfred Oetker
A110: Alfred von Oppenheim
A111: Alfred West Jr
A112: Alfredo Egydio Arruda Villela Filho
A113: Alfredo Harp Helu & Family
A114: Ali Ibrahim Agaoglu
A115: Ali Metin Kazanci
A116: Alice Walton
A117: Alicia Koplowitz
A118: Alijan Ibragimov
A119: Aliko Dangote
A120: Alisher Usmanov
A121: Allan Gray
A122: Allan Slaight
A123: Allan Wong
A124: Aloke Lohia
A125: Aloys Wobben
A126: Aloysio de Andrade Faria
A127: Alvaro Noboa
A128: Alvaro Saieh Bendeck
A129: Amalia Lacroze de Fortabat
A130: Amancio Ortega
A131: Amar Bose
A132: Americo Amorim
A133: Edward Stack
A134: Amos Hostetter Jr
A135: Amy Wyss
A136: An Kang
A137: Ana Lucia de Mattos Barretto Villela
A138: Ana Maria Brescia Cafferata
A139: Ana Maria Marcondes Penido Sant'Anna
A140: Anacleto Angelini
A141: Anand Burman
A142: Anand Jain
A143: Anand Mahindra
A144: Ananda Krishnan
A145: Anas Sefrioui
A146: Anatoly Lomakin
A147: Anatoly Sedykh
A148: Anatoly Skurov
A149: Anders Holch Povlsen
A150: Andre Esteves
A151: André Kudelski
A152: Andrea Della Valle
A153: Andrea Reimann-Ciardelli
A154: Andreas Halvorsen
A155: Fred DeLuca
A156: Andreas Struengmann
A157: Andreas von Bechtolsheim
A158: Andrei Bokarev
A159: Andrei Borodin
A160: Andrei Filatov
A161: Andrei Guriev
A162: Andrei Klyamko
A163: Andrei Komarov
A164: Andrei Kosogov
A165: Andrei Kozitsyn
A166: Andrei Kuzyaev
A167: Andrei Molchanov
A168: Andrei Rappoport
A169: Andrei Rogachev
A170: Andrei Skoch
A171: Andrej Babis
A172: Andres Santo Domingo
A173: Andrew & Peggy Cherng
A174: Andrew Beal
A175: Andrew Currie
A176: Andrew Forrest
A177: Andrew Gotianun
A178: Andrew McKelvey
A179: Andrew Tan
A180: Andrey Melnichenko
A181: Andrey Verevskiy
A182: Andronico Luksic & Family
A183: Herbert Louis
A184: Angela Bennett
A185: Angela Leong
A186: Anil Agarwal
A187: Anil Ambani
A188: Anita Zucker
A189: Ann Walton Kroenke
A190: Anna Maria Braun
A191: Anne Beaufour
A192: Hong Xiaobo
A193: Anne Gittinger
A194: Anne Windfohr Marion
A195: Anneliese Brost
A196: Anthony Bamford
A197: Anthony Langley
A198: Anthony O'Reilly & Family
A199: Anthony Pratt
A200: Anthony Pritzker
A201: Anton Kathrein Jr
... 3030 more rows
